[Event "Najdorf Memorial-A 2022"]
[Site "Warsaw"]
[Date "2022.07.13"]
[Round "5.12"]
[White "Dovzhenko, Alexander"]
[Black "Fiszer, Bartosz"]
[Result "0-1"]
[ECO "E62"]
[WhiteElo "1973"]
[BlackElo "2228"]
[Annotator "ChessBase"]
[PlyCount "56"]
[EventDate "2022.07.09"]
[EventType "swiss"]
[EventCountry "POL"]
[SourceTitle "playchess.com"]
[Source "ChessBase"]
[SourceQuality "1"]
[TimeControl "40/5400+30:1800+30"]

1. Nf3 {[%emt 0:00:04]} Nf6 {[%emt 0:01:15]} 2. g3 {[%emt 0:00:07]} g6 {[%emt 0:00:04]} 3. Bg2 {[%emt 0:00:06]} Bg7 {[%emt 0:00:19]} 4. O-O {[%emt 0:00:09]} O-O {[%emt 0:00:51]} 5. d4 {[%emt 0:00:37]} d6 {[%emt 0:00:20]} 6. c4 {[%emt 0:00:50]} Nc6 {[%emt 0:00:02]} 7. Nc3 {[%emt 0:00:34]} Bg4 {[%emt 0:00:08]} 8. h3 {[%emt 0:00:43]} Bxf3 {[%emt 0:00:14]} 9. Bxf3 {[%emt 0:00:10]} Nd7 {[%emt 0:00:03]} 10. Be3 {[%emt 0:02:35]} e5 {[%emt 0:00:08]} 11. d5 {[%emt 0:00:58]} Ne7 {[%emt 0:00:36]} 12. Rc1 {[%emt 0:00:16]} f5 {[%emt 0:00:46]} 13. b4 {[%emt 0:05:58]} f4 {[%emt 0:00:46]} 14. gxf4 {[%emt 0:00:39]} exf4 {[%emt 0:00:07]} 15. Bd4 {[%emt 0:00:04]} Nf5 {[%emt 0:00:30]} 16. Bxg7 {[%emt 0:00:35]} Kxg7 {[%emt 0:00:05]} 17. Bg4 {[%emt 0:01:18]} Qh4 {[%emt 0:01:17]} 18. Nb5 {[%emt 0:10:11]} Ne5 {[%emt 0:07:37]} 19. e4 {[%emt 0:04:54]} fxe3 {[%emt 0:01:30]} 20. Nxc7 {[%emt 0:00:23]} exf2+ {[%emt 0:01:12]} 21. Rxf2 {[%emt 0:00:38]} Ne3 {[%emt 0:12:32]} 22. Ne6+ {[%emt 0:02:59]} Kh6 {[%emt 0:00:32]} 23. Qd2 {[%emt 0:02:06]} Qxf2+ {[%emt 0:00:09]} 24. Qxf2 {[%emt 0:00:13]} Rxf2 {[%emt 0:00:02]} 25. Kxf2 {[%emt 0:00:07]} N3xg4+ {[%emt 0:00:02]} 26. Kg3 {[%emt 0:00:36]} Ne3 {[%emt 0:02:35]} 27. c5 {[%emt 0:00:48]} dxc5 {[%emt 0:02:29]} 28. d6 {[%emt 0:00:38]} Nf5+ {[%emt 0:00:11]} 0-1

[Event "Najdorf Memorial-A 2022"]
[Site "Warsaw"]
[Date "2022.07.13"]
[Round "5.12"]
[White "Kaminski, Jan"]
[Black "Janeczko, Jakub"]
[Result "0-1"]
[ECO "B32"]
[WhiteElo "1870"]
[BlackElo "2080"]
[Annotator "ChessBase"]
[PlyCount "88"]
[EventDate "2022.07.09"]
[EventType "swiss"]
[EventCountry "POL"]
[SourceTitle "playchess.com"]
[Source "ChessBase"]
[SourceQuality "1"]
[TimeControl "40/5400+30:1800+30"]

1. e4 {[%emt 0:00:03]} c5 {[%emt 0:00:02]} 2. Nf3 {[%emt 0:00:04]} Nc6 {[%emt 0:00:05]} 3. d4 {[%emt 0:00:02]} cxd4 {[%emt 0:00:06]} 4. Nxd4 {[%emt 0:00:01]} e5 {[%emt 0:00:06]} 5. Nb5 {[%emt 0:00:14]} d6 {[%emt 0:00:03]} 6. c4 {[%emt 0:00:48]} Be7 {[%emt 0:00:07]} 7. Be2 {[%emt 0:01:01]} Nf6 {[%emt 0:00:08]} 8. N1c3 {[%emt 0:00:50]} a6 {[%emt 0:00:07]} 9. Na3 {[%emt 0:00:04]} O-O {[%emt 0:00:06]} 10. Nc2 {[%emt 0:03:30]} Be6 {[%emt 0:01:03]} 11. O-O {[%emt 0:05:14]} Rc8 {[%emt 0:00:32]} 12. b3 {[%emt 0:04:02]} b5 {[%emt 0:07:06]} 13. cxb5 {[%emt 0:03:11]} axb5 {[%emt 0:02:04]} 14. Bb2 {[%emt 0:20:04]} b4 {[%emt 0:06:39]} 15. Nd5 {[%emt 0:00:16]} Nxe4 {[%emt 0:02:03]} 16. Ncxb4 {[%emt 0:02:02]} Nxb4 {[%emt 0:01:40]} 17. Nxb4 {[%emt 0:00:01]} d5 {[%emt 0:24:17]} 18. Nd3 {[%emt 0:01:02]} f6 {[%emt 0:01:42]} 19. Rc1 {[%emt 0:08:27]} Qb6 {[%emt 0:03:11]} 20. Bg4 {[%emt 0:07:33]} Rxc1 {[%emt 0:03:41]} 21. Bxe6+ {[%emt 0:01:22]} Qxe6 {[%emt 0:00:02]} 22. Qxc1 {[%emt 0:01:12]} Qa6 {[%emt 0:06:30]} 23. Qe3 {[%emt 0:04:56]} Qxa2 {[%emt 0:05:25]} 24. f3 {[%emt 0:01:05]} Qxb2 {[%emt 0:07:18]} 25. Nxb2 {[%emt 0:02:37]} Bc5 {[%emt 0:00:40]} 26. Re1 {[%emt 0:02:22]} Bxe3+ {[%emt 0:01:02]} 27. Rxe3 {[%emt 0:00:01]} Nd6 {[%emt 0:01:25]} 28. Rc3 {[%emt 0:03:04]} Rc8 {[%emt 0:08:24]} 29. Rxc8+ {[%emt 0:00:13]} Nxc8 {[%emt 0:00:01]} 30. Kf2 {[%emt 0:00:35]} Kf7 {[%emt 0:00:02]} 31. Ke3 {[%emt 0:00:13]} Ke6 {[%emt 0:00:02]} 32. Na4 {[%emt 0:01:10]} d4+ {[%emt 0:03:21]} 33. Kd3 {[%emt 0:00:14]} Kd5 {[%emt 0:00:02]} 34. g4 {[%emt 0:01:13]} g6 {[%emt 0:00:08]} 35. b4 {[%emt 0:00:08]} f5 {[%emt 0:01:19]} 36. gxf5 {[%emt 0:00:07]} gxf5 {[%emt 0:00:02]} 37. b5 {[%emt 0:03:38]} e4+ {[%emt 0:00:14]} 38. fxe4+ {[%emt 0:00:01]} fxe4+ {[%emt 0:00:02]} 39. Kd2 {[%emt 0:00:02]} Nd6 {[%emt 0:08:06]} 40. b6 {[%emt 0:00:00]} Kc4 {[%emt 0:00:00]} 41. Kc2 {[%emt 0:01:21]} d3+ {[%emt 0:05:40]} 42. Kd2 {[%emt 0:00:31]} Kd4 {[%emt 0:00:02]} 43. h4 {[%emt 0:01:16]} e3+ {[%emt 0:00:36]} 44. Kd1 {[%emt 0:00:07]} e2+ {[%emt 0:00:17]} 0-1

[Event "Najdorf Memorial-A 2022"]
[Site "Warsaw"]
[Date "2022.07.13"]
[Round "5.13"]
[White "Gorkiewicz, Mateusz"]
[Black "Markiewicz, Jerzy"]
[Result "0-1"]
[ECO "B28"]
[WhiteElo "2023"]
[BlackElo "2205"]
[Annotator "ChessBase"]
[PlyCount "84"]
[EventDate "2022.07.09"]
[EventType "swiss"]
[EventCountry "POL"]
[SourceTitle "playchess.com"]
[Source "ChessBase"]
[SourceQuality "1"]
[TimeControl "40/5400+30:1800+30"]

1. e4 {[%emt 0:00:04]} c5 2. Nf3 {[%emt 0:00:14]} a6 {[%emt 0:00:16]} 3. c4 {[%emt 0:00:27]} Nc6 {[%emt 0:00:08]} 4. d4 {[%emt 0:00:17]} cxd4 {[%emt 0:00:07]} 5. Nxd4 {[%emt 0:00:08]} e5 {[%emt 0:00:07]} 6. Nf5 {[%emt 0:00:20]} d6 {[%emt 0:00:08]} 7. Ne3 {[%emt 0:00:21]} g6 {[%emt 0:00:32]} 8. Nc3 {[%emt 0:00:50]} Bh6 {[%emt 0:01:49]} 9. g3 {[%emt 0:20:00]} Be6 {[%emt 0:01:21]} 10. Ned5 {[%emt 0:01:48]} Bxc1 {[%emt 0:00:30]} 11. Rxc1 {[%emt 0:02:52]} Rc8 {[%emt 0:10:54]} 12. h4 {[%emt 0:00:30]} h5 {[%emt 0:00:30]} 13. Bg2 {[%emt 0:06:04]} Nd4 {[%emt 0:09:25]} 14. b3 {[%emt 0:07:56]} b5 {[%emt 0:02:56]} 15. cxb5 {[%emt 0:03:18]} axb5 {[%emt 0:00:15]} 16. O-O {[%emt 0:00:47]} Bxd5 {[%emt 0:02:17]} 17. exd5 {[%emt 0:00:52]} Qa5 {[%emt 0:04:28]} 18. Ne2 {[%emt 0:01:53]} Rxc1 {[%emt 0:00:15]} 19. Nxc1 {[%emt 0:00:09]} Ne7 {[%emt 0:00:20]} 20. f4 {[%emt 0:19:13]} Nef5 {[%emt 0:05:21]} 21. Re1 {[%emt 0:05:31]} O-O {[%emt 0:00:36]} 22. fxe5 {[%emt 0:03:19]} dxe5 {[%emt 0:02:59]} 23. Nd3 {[%emt 0:02:29]} Nxg3 {[%emt 0:06:47]} 24. Rxe5 {[%emt 0:01:51]} Qd8 {[%emt 0:03:19]} 25. Nf4 {[%emt 0:05:38]} Ndf5 {[%emt 0:00:36]} 26. Qe1 {[%emt 0:10:28]} Qxh4 {[%emt 0:00:32]} 27. Ne2 {[%emt 0:00:48]} Nxe2+ {[%emt 0:00:57]} 28. Qxe2 {[%emt 0:00:08]} Qd4+ {[%emt 0:01:05]} 29. Kh2 {[%emt 0:00:12]} Qf4+ {[%emt 0:01:29]} 30. Kg1 {[%emt 0:00:12]} Kg7 {[%emt 0:00:46]} 31. Re8 {[%emt 0:02:44]} Rxe8 {[%emt 0:00:27]} 32. Qxe8 {[%emt 0:00:06]} b4 {[%emt 0:00:06]} 33. Qc6 {[%emt 0:01:48]} Nd4 {[%emt 0:01:32]} 34. Qc4 {[%emt 0:01:02]} Qe3+ {[%emt 0:00:24]} 35. Kh2 {[%emt 0:01:29]} Qf2 {[%emt 0:03:13]} 36. Qd3 {[%emt 0:00:54]} h4 {[%emt 0:00:45]} 37. Qe4 {[%emt 0:01:05]} f5 {[%emt 0:02:56]} 38. Qe7+ {[%emt 0:01:06]} Kh6 {[%emt 0:00:07]} 39. Kh1 {[%emt 0:00:34]} Ne2 {[%emt 0:02:42]} 40. Qf8+ {[%emt 0:00:00]} Kg5 {[%emt 0:00:00]} 41. Qe7+ {[%emt 0:00:38]} Kg4 {[%emt 0:00:53]} 42. Qxb4+ {[%emt 0:00:12]} f4 {[%emt 0:00:17]} 0-1

[Event "Najdorf Memorial-A 2022"]
[Site "Warsaw"]
[Date "2022.07.13"]
[Round "5.13"]
[White "Lee, Hyuk"]
[Black "Pires, Emanuel Joao Robarts"]
[Result "1-0"]
[ECO "A08"]
[WhiteElo "1880"]
[BlackElo "2062"]
[Annotator "ChessBase"]
[PlyCount "181"]
[EventDate "2022.07.09"]
[EventType "swiss"]
[EventCountry "POL"]
[SourceTitle "playchess.com"]
[Source "ChessBase"]
[SourceQuality "1"]
[TimeControl "40/5400+30:1800+30"]

1. e4 e6 2. d3 d5 3. Nd2 Nf6 4. Ngf3 c5 5. g3 Nc6 6. Bg2 Be7 7. O-O O-O 8. Re1 b5 9. e5 Nd7 10. Nf1 f6 11. exf6 Nxf6 12. c3 b4 13. Bf4 a5 14. Ng5 e5 15. Bxe5 Ng4 16. Nf3 Bb7 17. Bf4 a4 18. cxb4 cxb4 19. h3 Nh6 20. Bxh6 gxh6 21. d4 Kh8 22. Ne3 Bf6 23. Ng4 Bg7 24. Rc1 Qd6 25. Nge5 Rad8 26. Nxc6 Bxc6 27. Ne5 Be8 28. Rc5 Qf6 29. f4 Qf5 30. Kh2 a3 31. bxa3 bxa3 32. Rxd5 Bh5 33. Qb1 Qc8 34. Rc5 Qa6 35. Nc6 Bg6 36. Qb5 Qxb5 37. Rxb5 Rd6 38. d5 Bb2 39. Be4 Re8 40. Ne5 Kg8 41. Bxg6 hxg6 42. Nd3 Rc8 43. Re2 Bd4 44. h4 Rcd8 45. Nb4 Bf6 46. Re3 Bb2 47. Rb7 R8d7 48. Re7 Rxe7 49. Rxe7 Bc3 50. Nc2 Rxd5 51. Nxa3 Ra5 52. Nc4 Rxa2+ 53. Kh3 Bd4 54. Kg4 Bf6 55. Re8+ Kg7 56. h5 Rc2 57. Nd6 gxh5+ 58. Kxh5 Rh2+ 59. Kg4 h5+ 60. Kf5 Ra2 61. Re3 Ra5+ 62. Ke6 Ra6 63. Rd3 Kg6 64. Rb3 Bg7 65. Rb5 Bh6 66. Ke5 Bg7+ 67. Kd5 Bf8 68. Nc4 Rf6 69. Ke4 Kg7 70. Rxh5 Rg6 71. Kf3 Rc6 72. Ne5 Rc3+ 73. Kg4 Bc5 74. Rg5+ Kh7 75. Kf5 Be7 76. Rg6 Ra3 77. g4 Ra4 78. Re6 Bb4 79. Kf6 Bc3 80. Kg5 Bb4 81. f5 Ra7 82. Nc6 Rg7+ 83. Kh5 Bc5 84. Ne5 Be3 85. Rg6 Re7 86. Nf3 Kh8 87. Ng5 Bd2 88. Re6 Rb7 89. f6 Rb8 90. f7 Kg7 91. Re8 1-0

[Event "Najdorf Memorial-A 2022"]
[Site "Warsaw"]
[Date "2022.07.13"]
[Round "5.14"]
[White "Lasota, Adam"]
[Black "Kaczmarek, Arkadiusz"]
[Result "0-1"]
[ECO "D00"]
[WhiteElo "1892"]
[BlackElo "2147"]
[Annotator "ChessBase"]
[PlyCount "94"]
[EventDate "2022.07.09"]
[EventType "swiss"]
[EventCountry "POL"]
[SourceTitle "playchess.com"]
[Source "ChessBase"]
[SourceQuality "1"]
[TimeControl "40/5400+30:1800+30"]

1. d4 {[%emt 0:00:03]} d5 {[%emt 0:00:15]} 2. Bf4 {[%emt 0:00:05]} c5 {[%emt 0:00:22]} 3. e3 {[%emt 0:00:13]} cxd4 {[%emt 0:00:27]} 4. exd4 {[%emt 0:00:06]} Nc6 {[%emt 0:00:21]} 5. c3 {[%emt 0:00:11]} Bf5 {[%emt 0:00:24]} 6. Nd2 {[%emt 0:01:18]} e6 {[%emt 0:00:28]} 7. Ngf3 {[%emt 0:01:10]} h6 {[%emt 0:15:04]} 8. Ne5 {[%emt 0:02:26]} Nge7 {[%emt 0:22:00]} 9. Ndf3 {[%emt 0:07:10]} g5 {[%emt 0:02:03]} 10. Bg3 {[%emt 0:02:14]} f6 {[%emt 0:00:30]} 11. Nxc6 {[%emt 0:01:06]} bxc6 {[%emt 0:00:24]} 12. Bd3 {[%emt 0:01:38]} h5 {[%emt 0:01:59]} 13. h3 {[%emt 0:02:25]} Bxd3 {[%emt 0:08:40]} 14. Qxd3 {[%emt 0:02:57]} Nf5 {[%emt 0:00:19]} 15. O-O-O {[%emt 0:03:39]} Kf7 {[%emt 0:06:33]} 16. Rhe1 {[%emt 0:01:27]} h4 {[%emt 0:09:16]} 17. Bh2 {[%emt 0:01:26]} Bd6 {[%emt 0:00:13]} 18. Bxd6 {[%emt 0:02:52]} Qxd6 {[%emt 0:00:16]} 19. Re2 {[%emt 0:02:20]} a5 {[%emt 0:03:32]} 20. Rde1 {[%emt 0:00:23]} Qf4+ {[%emt 0:03:18]} 21. Kb1 {[%emt 0:03:08]} Rhe8 {[%emt 0:00:20]} 22. Rg1 {[%emt 0:02:39]} Ng7 {[%emt 0:02:59]} 23. Ka1 {[%emt 0:03:02]} Qf5 {[%emt 0:02:06]} 24. Qe3 {[%emt 0:02:10]} a4 {[%emt 0:01:58]} 25. g3 {[%emt 0:04:13]} hxg3 {[%emt 0:02:08]} 26. fxg3 {[%emt 0:03:36]} Qxh3 {[%emt 0:01:11]} 27. g4 {[%emt 0:19:33]} Qh7 {[%emt 0:02:22]} 28. Rh2 {[%emt 0:00:31]} Qe4 {[%emt 0:10:42]} 29. Qf2 {[%emt 0:00:39]} Ke7 {[%emt 0:01:05]} 30. Nd2 {[%emt 0:02:40]} Qd3 {[%emt 0:02:43]} 31. Rh6 {[%emt 0:03:08]} Rf8 {[%emt 0:01:14]} 32. Qh2 {[%emt 0:01:34]} Kd7 {[%emt 0:00:30]} 33. a3 {[%emt 0:02:04]} Rf7 {[%emt 0:00:24]} 34. Rf1 {[%emt 0:00:31]} Ne8 {[%emt 0:00:37]} 35. Re1 {[%emt 0:02:22]} Nd6 {[%emt 0:00:44]} 36. Qf2 {[%emt 0:02:54]} Raf8 {[%emt 0:00:27]} 37. Re3 {[%emt 0:01:06]} Qc2 {[%emt 0:00:28]} 38. Re2 {[%emt 0:01:24]} Rb8 {[%emt 0:00:27]} 39. Nb1 {[%emt 0:00:31]} Qd3 {[%emt 0:00:38]} 40. Rd2 {[%emt 0:00:00]} Ne4 {[%emt 0:00:00]} 41. Rxd3 {[%emt 0:04:18]} Nxf2 {[%emt 0:04:29]} 42. Rg3 {[%emt 0:00:08]} Ne4 {[%emt 0:03:14]} 43. Rg2 {[%emt 0:01:07]} f5 {[%emt 0:09:50]} 44. Nd2 {[%emt 0:00:28]} fxg4 {[%emt 0:02:46]} 45. Nxe4 {[%emt 0:00:17]} Rf1+ {[%emt 0:01:04]} 46. Ka2 {[%emt 0:00:04]} dxe4 {[%emt 0:00:13]} 47. Rg6 {[%emt 0:02:19]} e3 {[%emt 0:02:04]} 0-1

[Event "Najdorf Memorial-A 2022"]
[Site "Warsaw"]
[Date "2022.07.13"]
[Round "5.14"]
[White "Haliniak, Wojciech"]
[Black "Harazinska, Magdalena"]
[Result "1/2-1/2"]
[ECO "B40"]
[WhiteElo "1827"]
[BlackElo "1976"]
[Annotator "ChessBase"]
[PlyCount "68"]
[EventDate "2022.07.09"]
[EventType "swiss"]
[EventCountry "POL"]
[SourceTitle "playchess.com"]
[Source "ChessBase"]
[SourceQuality "1"]
[TimeControl "40/5400+30:1800+30"]

1. e4 {[%emt 0:00:04]} c5 {[%emt 0:00:05]} 2. Nf3 {[%emt 0:00:08]} e6 {[%emt 0:00:13]} 3. d4 {[%emt 0:00:18]} cxd4 {[%emt 0:00:05]} 4. Nxd4 {[%emt 0:00:07]} Nf6 {[%emt 0:00:27]} 5. Bd3 {[%emt 0:00:26]} a6 {[%emt 0:01:12]} 6. O-O {[%emt 0:04:44]} d6 {[%emt 0:02:51]} 7. c4 {[%emt 0:01:00]} Be7 {[%emt 0:01:26]} 8. Nc3 {[%emt 0:00:25]} O-O {[%emt 0:02:28]} 9. Qe2 {[%emt 0:01:40]} b6 {[%emt 0:04:53]} 10. f4 {[%emt 0:00:48]} Bb7 {[%emt 0:00:28]} 11. Bd2 {[%emt 0:04:14]} Nbd7 {[%emt 0:06:46]} 12. f5 {[%emt 0:01:04]} e5 {[%emt 0:04:24]} 13. Nb3 {[%emt 0:05:03]} Nc5 {[%emt 0:03:28]} 14. Bc2 {[%emt 0:05:52]} Nxb3 {[%emt 0:12:34]} 15. axb3 {[%emt 0:02:44]} Bc6 {[%emt 0:08:20]} 16. Kh1 {[%emt 0:03:51]} Re8 {[%emt 0:12:12]} 17. g4 {[%emt 0:09:14]} Nd7 {[%emt 0:02:15]} 18. Rg1 {[%emt 0:06:24]} h6 {[%emt 0:01:19]} 19. g5 {[%emt 0:07:45]} Bxg5 {[%emt 0:05:58]} 20. Bxg5 {[%emt 0:00:29]} hxg5 {[%emt 0:00:02]} 21. Qh5 {[%emt 0:01:50]} Qf6 {[%emt 0:13:37]} 22. Rxg5 {[%emt 0:00:35]} Kf8 {[%emt 0:00:56]} 23. Qh8+ {[%emt 0:09:28]} Ke7 {[%emt 0:00:05]} 24. Qxg7 {[%emt 0:00:09]} Rh8 {[%emt 0:01:33]} 25. b4 {[%emt 0:07:52]} Bb7 {[%emt 0:02:22]} 26. Nd5+ {[%emt 0:04:20]} Bxd5 {[%emt 0:00:06]} 27. cxd5 {[%emt 0:00:03]} Rh4 {[%emt 0:02:40]} 28. Bd3 {[%emt 0:12:40]} Rah8 {[%emt 0:00:41]} 29. Qxf6+ {[%emt 0:00:08]} Nxf6 {[%emt 0:00:02]} 30. Rg2 {[%emt 0:00:16]} Ng4 {[%emt 0:00:41]} 31. Rxa6 {[%emt 0:01:11]} Rxh2+ {[%emt 0:00:02]} 32. Rxh2 {[%emt 0:00:18]} Rxh2+ {[%emt 0:00:14]} 33. Kg1 {[%emt 0:00:04]} Rxb2 {[%emt 0:00:44]} 34. Rxb6 {[%emt 0:01:17]} Nf2 {[%emt 0:00:48]} 1/2-1/2

[Event "Najdorf Memorial-A 2022"]
[Site "Warsaw"]
[Date "2022.07.13"]
[Round "5.15"]
[White "Rozumek, Krzysztof"]
[Black "Szewczyk, Mariusz"]
[Result "1/2-1/2"]
[ECO "A00"]
[WhiteElo "1801"]
[BlackElo "2103"]
[Annotator "ChessBase"]
[PlyCount "71"]
[EventDate "2022.07.09"]
[EventType "swiss"]
[EventCountry "POL"]
[SourceTitle "playchess.com"]
[Source "ChessBase"]
[SourceQuality "1"]
[TimeControl "40/5400+30:1800+30"]

1. h3 {[%emt 0:00:01]} e5 {[%emt 0:00:17]} 2. c3 {[%emt 0:00:01]} d5 {[%emt 0:00:05]} 3. d4 {[%emt 0:00:02]} Nc6 {[%emt 0:00:13]} 4. dxe5 {[%emt 0:00:10]} Nxe5 {[%emt 0:00:14]} 5. Nd2 {[%emt 0:00:02]} Nf6 {[%emt 0:01:25]} 6. Ngf3 {[%emt 0:00:04]} Ng6 {[%emt 0:01:05]} 7. e3 {[%emt 0:01:45]} Bd6 {[%emt 0:01:11]} 8. Bd3 {[%emt 0:01:34]} O-O {[%emt 0:00:21]} 9. O-O {[%emt 0:00:39]} c6 {[%emt 0:00:02]} 10. b3 {[%emt 0:01:45]} Bc7 {[%emt 0:03:26]} 11. Bb2 {[%emt 0:00:52]} Be6 {[%emt 0:02:56]} 12. c4 {[%emt 0:01:47]} dxc4 {[%emt 0:05:10]} 13. Nxc4 {[%emt 0:01:03]} b5 {[%emt 0:01:54]} 14. Nce5 {[%emt 0:00:55]} Bd5 {[%emt 0:02:05]} 15. Qc2 {[%emt 0:04:04]} Nxe5 {[%emt 0:01:56]} 16. Bxe5 {[%emt 0:03:00]} Bxf3 {[%emt 0:01:43]} 17. Bxc7 {[%emt 0:00:02]} Qxc7 {[%emt 0:00:11]} 18. gxf3 {[%emt 0:00:02]} Rad8 {[%emt 0:04:30]} 19. Rfd1 {[%emt 0:15:18]} Qe5 {[%emt 0:12:05]} 20. f4 {[%emt 0:04:05]} Qh5 {[%emt 0:02:14]} 21. Be2 {[%emt 0:02:31]} Qxh3 {[%emt 0:00:46]} 22. Qxc6 {[%emt 0:00:03]} Rc8 {[%emt 0:03:43]} 23. Qg2 {[%emt 0:02:43]} Qxg2+ {[%emt 0:00:52]} 24. Kxg2 {[%emt 0:00:02]} Ne4 {[%emt 0:00:14]} 25. Bf3 {[%emt 0:06:16]} Rfe8 {[%emt 0:09:34]} 26. Rd7 {[%emt 0:03:41]} a6 {[%emt 0:06:59]} 27. Rad1 {[%emt 0:08:44]} g6 {[%emt 0:12:58]} 28. Ra7 {[%emt 0:00:41]} Rc2 {[%emt 0:01:24]} 29. Bxe4 {[%emt 0:04:22]} Rxe4 {[%emt 0:00:07]} 30. Rdd7 {[%emt 0:00:02]} Rxe3 {[%emt 0:00:21]} 31. Rxf7 {[%emt 0:00:02]} Ree2 {[%emt 0:00:34]} 32. Rg7+ {[%emt 0:04:19]} Kf8 {[%emt 0:00:14]} 33. Rxh7 {[%emt 0:00:02]} Rxf2+ {[%emt 0:00:09]} 34. Kg3 {[%emt 0:00:13]} Rg2+ {[%emt 0:01:10]} 35. Kf3 {[%emt 0:00:02]} Rgf2+ {[%emt 0:00:08]} 36. Ke4 1/2-1/2

[Event "Najdorf Memorial-A 2022"]
[Site "Warsaw"]
[Date "2022.07.13"]
[Round "5.15"]
[White "Skrzypczynski, Kacper"]
[Black "Pettersson, Alexander"]
[Result "1-0"]
[ECO "D35"]
[WhiteElo "1793"]
[BlackElo "1968"]
[Annotator "ChessBase"]
[PlyCount "77"]
[EventDate "2022.07.09"]
[EventType "swiss"]
[EventCountry "POL"]
[SourceTitle "playchess.com"]
[Source "ChessBase"]
[SourceQuality "1"]
[TimeControl "40/5400+30:1800+30"]

1. d4 d5 {[%emt 0:03:41]} 2. c4 {[%emt 0:00:14]} e6 {[%emt 0:00:22]} 3. Nc3 {[%emt 0:00:05]} Nf6 {[%emt 0:00:06]} 4. cxd5 {[%emt 0:00:06]} exd5 {[%emt 0:00:05]} 5. Bg5 {[%emt 0:00:09]} c6 {[%emt 0:00:15]} 6. e3 {[%emt 0:00:12]} h6 {[%emt 0:00:35]} 7. Bh4 {[%emt 0:00:09]} Be7 {[%emt 0:00:18]} 8. Bd3 {[%emt 0:00:16]} O-O {[%emt 0:00:23]} 9. Qc2 {[%emt 0:01:51]} Re8 {[%emt 0:01:22]} 10. Nge2 {[%emt 0:06:32]} Nh5 {[%emt 0:02:03]} 11. Bxe7 {[%emt 0:00:31]} Qxe7 {[%emt 0:00:09]} 12. O-O {[%emt 0:00:10]} Nd7 {[%emt 0:01:28]} 13. Rab1 {[%emt 0:00:22]} Nf8 {[%emt 0:02:51]} 14. b4 {[%emt 0:00:52]} Nf6 {[%emt 0:10:59]} 15. Qb3 {[%emt 0:06:25]} Bd7 {[%emt 0:02:33]} 16. b5 {[%emt 0:00:42]} Rad8 {[%emt 0:19:46]} 17. Qa4 {[%emt 0:04:23]} cxb5 {[%emt 0:11:45]} 18. Bxb5 {[%emt 0:02:58]} a6 {[%emt 0:04:39]} 19. Bxd7 {[%emt 0:00:07]} Rxd7 {[%emt 0:03:16]} 20. Rb6 {[%emt 0:00:53]} Rc8 {[%emt 0:03:53]} 21. Qb3 {[%emt 0:01:16]} Ne6 {[%emt 0:04:44]} 22. Rb1 {[%emt 0:01:08]} Rcc7 {[%emt 0:01:33]} 23. h3 {[%emt 0:00:35]} Qd8 {[%emt 0:02:59]} 24. f3 {[%emt 0:05:32]} Qc8 {[%emt 0:05:47]} 25. Kf2 {[%emt 0:05:24]} Qd8 {[%emt 0:01:28]} 26. Ke1 {[%emt 0:00:45]} Nh5 {[%emt 0:02:19]} 27. Kf2 {[%emt 0:15:17]} Qh4+ {[%emt 0:01:47]} 28. Kg1 {[%emt 0:00:08]} Qg5 {[%emt 0:02:57]} 29. Nd1 {[%emt 0:01:10]} Ng3 {[%emt 0:01:42]} 30. Nxg3 {[%emt 0:03:08]} Qxg3 {[%emt 0:00:06]} 31. Nf2 {[%emt 0:00:04]} Ng5 {[%emt 0:04:04]} 32. Kf1 {[%emt 0:02:20]} Nxf3 {[%emt 0:01:17]} 33. gxf3 {[%emt 0:00:37]} Qxf3 {[%emt 0:00:11]} 34. Qd3 {[%emt 0:01:31]} Re7 {[%emt 0:03:07]} 35. Rxa6 {[%emt 0:00:43]} f5 {[%emt 0:02:16]} 36. Ra3 {[%emt 0:00:50]} Rc4 {[%emt 0:00:59]} 37. Re1 {[%emt 0:04:07]} Re4 {[%emt 0:00:43]} 38. Qe2 {[%emt 0:00:36]} Qg3 {[%emt 0:00:13]} 39. Nxe4 {[%emt 0:00:33]} 1-0

[Event "Najdorf Memorial-A 2022"]
[Site "Warsaw"]
[Date "2022.07.13"]
[Round "5.16"]
[White "Vanduyfhuys, Daria"]
[Black "Maslanka, Wojciech"]
[Result "0-1"]
[ECO "E71"]
[WhiteElo "2094"]
[BlackElo "2000"]
[Annotator "ChessBase"]
[PlyCount "78"]
[EventDate "2022.07.09"]
[EventType "swiss"]
[EventCountry "POL"]
[SourceTitle "playchess.com"]
[Source "ChessBase"]
[SourceQuality "1"]
[TimeControl "40/5400+30:1800+30"]

1. d4 {[%emt 0:00:03]} Nf6 {[%emt 0:00:25]} 2. c4 {[%emt 0:00:05]} g6 {[%emt 0:00:05]} 3. Nc3 {[%emt 0:00:19]} Bg7 {[%emt 0:00:42]} 4. e4 {[%emt 0:00:14]} d6 {[%emt 0:00:05]} 5. h3 {[%emt 0:02:16]} O-O {[%emt 0:01:33]} 6. Nf3 {[%emt 0:00:08]} e5 {[%emt 0:05:57]} 7. Be3 {[%emt 0:01:18]} Nc6 {[%emt 0:00:43]} 8. d5 {[%emt 0:00:58]} Ne7 {[%emt 0:00:06]} 9. g4 {[%emt 0:09:05]} Nd7 {[%emt 0:10:36]} 10. Rg1 {[%emt 0:04:34]} Kh8 {[%emt 0:03:21]} 11. Qd2 {[%emt 0:04:59]} a5 {[%emt 0:09:31]} 12. Be2 {[%emt 0:03:48]} Nc5 {[%emt 0:19:12]} 13. h4 {[%emt 0:04:48]} Rg8 {[%emt 0:14:17]} 14. h5 {[%emt 0:10:16]} gxh5 {[%emt 0:01:53]} 15. gxh5 {[%emt 0:00:19]} f5 {[%emt 0:00:51]} 16. Bg5 {[%emt 0:10:08]} Qf8 {[%emt 0:03:08]} 17. O-O-O {[%emt 0:19:53]} fxe4 {[%emt 0:05:47]} 18. Nh4 {[%emt 0:00:11]} Bf6 {[%emt 0:03:19]} 19. Bh6 {[%emt 0:04:08]} Qf7 {[%emt 0:00:22]} 20. Rxg8+ {[%emt 0:14:29]} Kxg8 {[%emt 0:14:26]} 21. Rg1+ {[%emt 0:00:20]} Kh8 {[%emt 0:00:05]} 22. Bg5 {[%emt 0:07:45]} Bd7 {[%emt 0:00:52]} 23. Qe3 {[%emt 0:00:12]} Bxg5 {[%emt 0:01:52]} 24. Rxg5 {[%emt 0:00:06]} Qf4 {[%emt 0:00:39]} 25. Qxf4 {[%emt 0:01:38]} exf4 {[%emt 0:00:11]} 26. Bg4 {[%emt 0:00:14]} h6 {[%emt 0:00:40]} 27. Ng6+ {[%emt 0:00:33]} Kh7 {[%emt 0:02:33]} 28. Nxe7 {[%emt 0:00:30]} hxg5 {[%emt 0:00:05]} 29. Bxd7 {[%emt 0:01:07]} Nxd7 {[%emt 0:00:05]} 30. Kd2 {[%emt 0:00:31]} Nc5 {[%emt 0:00:53]} 31. Nb5 {[%emt 0:00:19]} Re8 {[%emt 0:00:52]} 32. Nf5 {[%emt 0:00:14]} Re5 {[%emt 0:00:26]} 33. Nfd4 {[%emt 0:00:15]} Re7 {[%emt 0:00:09]} 34. Ke2 {[%emt 0:00:39]} Rf7 {[%emt 0:00:33]} 35. b3 {[%emt 0:00:25]} g4 {[%emt 0:00:12]} 36. a3 {[%emt 0:00:27]} g3 {[%emt 0:00:07]} 37. Kf1 {[%emt 0:00:07]} gxf2 {[%emt 0:00:23]} 38. Kxf2 {[%emt 0:00:18]} f3 {[%emt 0:00:07]} 39. b4 {[%emt 0:00:31]} e3+ {[%emt 0:00:27]} 0-1